[Event "*** SCC Grand Prix: Titled Tuesday Blitz"]
[Site "Chess.com"]
[Date "2020.07.14"]
[Round "9"]
[White "Artem_Sadovsky"]
[Black "MFguimaraes"]
[Result "0-1"]
[WhiteElo "2526"]
[BlackElo "2401"]
[TimeControl "180+1"]
[EndTime "11:47:30 PDT"]
[Termination "MFguimaraes won on time"]

1. Nf3 {[%clk 0:02:16.6]} 1... Nf6 {[%clk 0:02:59.6]} 2. c4 {[%clk 0:02:15.7]}
2... c6 {[%clk 0:02:58.8]} 3. b3 {[%clk 0:02:16]} 3... d5 {[%clk 0:02:59.1]} 4.
Bb2 {[%clk 0:02:16.9]} 4... Bg4 {[%clk 0:02:53.3]} 5. e3 {[%clk 0:02:16.4]} 5...
Nbd7 {[%clk 0:02:52.6]} 6. Be2 {[%clk 0:02:16.8]} 6... g6 {[%clk 0:02:49.2]} 7.
O-O {[%clk 0:02:10.5]} 7... Bg7 {[%clk 0:02:48.7]} 8. d3 {[%clk 0:02:11.1]} 8...
O-O {[%clk 0:02:48.4]} 9. Nbd2 {[%clk 0:02:11.7]} 9... Re8 {[%clk 0:02:45.5]}
10. h3 {[%clk 0:01:56.2]} 10... Bxf3 {[%clk 0:02:45.4]} 11. Bxf3 {[%clk
0:01:57.1]} 11... e5 {[%clk 0:02:45.1]} 12. cxd5 {[%clk 0:01:57.7]} 12... cxd5
{[%clk 0:02:45.5]} 13. d4 {[%clk 0:01:54.7]} 13... Ne4 {[%clk 0:02:32.1]} 14.
Nxe4 {[%clk 0:01:47.3]} 14... dxe4 {[%clk 0:02:31.9]} 15. Bxe4 {[%clk
0:01:47.5]} 15... exd4 {[%clk 0:02:32.3]} 16. Bxb7 {[%clk 0:01:46.3]} 16... dxe3
{[%clk 0:02:25.2]} 17. Bxg7 {[%clk 0:01:36.6]} 17... e2 {[%clk 0:02:24.8]} 18.
Qd4 {[%clk 0:01:37.2]} 18... exf1=Q+ {[%clk 0:02:12.4]} 19. Rxf1 {[%clk
0:01:38.1]} 19... Rb8 {[%clk 0:02:09]} 20. Bc6 {[%clk 0:01:38.4]} 20... Qb6
{[%clk 0:01:47.8]} 21. Qxb6 {[%clk 0:01:30.2]} 21... Rxb6 {[%clk 0:01:42.5]} 22.
Bxd7 {[%clk 0:01:30.4]} 22... Rd8 {[%clk 0:01:33.1]} 23. Bd4 {[%clk 0:01:25.8]}
23... Rd6 {[%clk 0:01:22.6]} 24. Bxa7 {[%clk 0:01:21.6]} 24... R8xd7 {[%clk
0:01:22.9]} 25. Bc5 {[%clk 0:01:02.1]} 25... Ra6 {[%clk 0:01:17.9]} 26. Ra1
{[%clk 0:00:45.9]} 26... Rd3 {[%clk 0:01:00.6]} 27. b4 {[%clk 0:00:32.2]} 27...
Rda3 {[%clk 0:00:55.9]} 28. Rd1 {[%clk 0:00:16.7]} 28... Rxa2 {[%clk 0:00:50.9]}
29. Rd8+ {[%clk 0:00:17.3]} 29... Kg7 {[%clk 0:00:50.8]} 30. Bd4+ {[%clk
0:00:16.2]} 30... Kh6 {[%clk 0:00:49]} 31. Be3+ {[%clk 0:00:13.8]} 31... Kg7
{[%clk 0:00:46.2]} 32. Bd4+ {[%clk 0:00:14.3]} 32... f6 {[%clk 0:00:46.7]} 33.
Rd7+ {[%clk 0:00:13.8]} 33... Kh6 {[%clk 0:00:46.8]} 34. Be3+ {[%clk 0:00:12.8]}
34... g5 {[%clk 0:00:47.2]} 35. b5 {[%clk 0:00:09.7]} 35... Ra1+ {[%clk
0:00:47]} 36. Kh2 {[%clk 0:00:09.7]} 36... Re6 {[%clk 0:00:43.4]} 37. b6 {[%clk
0:00:09.9]} 37... Rb1 {[%clk 0:00:43.5]} 38. b7 {[%clk 0:00:09.2]} 38... Ra6
{[%clk 0:00:34.6]} 39. h4 {[%clk 0:00:09.6]} 39... Kg6 {[%clk 0:00:34.7]} 40.
hxg5 {[%clk 0:00:09.7]} 40... fxg5 {[%clk 0:00:35.6]} 41. Bd4 {[%clk 0:00:06]}
41... h6 {[%clk 0:00:31.8]} 42. g4 {[%clk 0:00:03.7]} 42... h5 {[%clk
0:00:29.1]} 43. Rg7+ {[%clk 0:00:01.1]} 43... Kh6 {[%clk 0:00:29.4]} 44. gxh5
{[%clk 0:00:01.8]} 44... Kxh5 {[%clk 0:00:24.8]} 45. Be5 {[%clk 0:00:02.1]}
45... Rab6 {[%clk 0:00:23.2]} 46. b8=Q {[%clk 0:00:01.8]} 46... Rxb8 {[%clk
0:00:23.6]} 0-1

[Event "*** SCC Grand Prix: Titled Tuesday Blitz"]
[Site "Chess.com"]
[Date "2020.07.14"]
[Round "9"]
[White "PotapovaM"]
[Black "MF1966Idrisov"]
[Result "0-1"]
[WhiteElo "2474"]
[BlackElo "2348"]
[TimeControl "180+1"]
[EndTime "11:47:31 PDT"]
[Termination "MF1966Idrisov won by checkmate"]

1. d4 {[%clk 0:03:00.9]} 1... d6 {[%clk 0:02:59.5]} 2. e4 {[%clk 0:03:00.5]}
2... Nd7 {[%clk 0:02:58.9]} 3. Nc3 {[%clk 0:02:58.8]} 3... e5 {[%clk 0:02:58.8]}
4. Nf3 {[%clk 0:02:59]} 4... Be7 {[%clk 0:02:58.4]} 5. Bc4 {[%clk 0:02:58]} 5...
c6 {[%clk 0:02:53.5]} 6. a4 {[%clk 0:02:57.6]} 6... h6 {[%clk 0:02:52.7]} 7. O-O
{[%clk 0:02:58]} 7... Ngf6 {[%clk 0:02:52.6]} 8. Re1 {[%clk 0:02:57.6]} 8... O-O
{[%clk 0:02:52.3]} 9. h3 {[%clk 0:02:52.6]} 9... a5 {[%clk 0:02:51.3]} 10. d5
{[%clk 0:02:47.3]} 10... Qc7 {[%clk 0:02:48]} 11. b3 {[%clk 0:02:44.1]} 11...
Re8 {[%clk 0:02:46.8]} 12. Ba3 {[%clk 0:02:39.7]} 12... Nf8 {[%clk 0:02:44.9]}
13. Nh4 {[%clk 0:02:14.9]} 13... Nxd5 {[%clk 0:02:25.8]} 14. exd5 {[%clk
0:02:11.1]} 14... Bxh4 {[%clk 0:02:25.2]} 15. dxc6 {[%clk 0:02:11]} 15... Qxc6
{[%clk 0:02:10.7]} 16. Ne4 {[%clk 0:01:44.4]} 16... Qb6 {[%clk 0:01:56.8]} 17.
g3 {[%clk 0:01:23.5]} 17... Be7 {[%clk 0:01:51.8]} 18. Nc3 {[%clk 0:01:04.6]}
18... Be6 {[%clk 0:01:47.4]} 19. Nd5 {[%clk 0:01:00.7]} 19... Bxd5 {[%clk
0:01:47.1]} 20. Bxd5 {[%clk 0:00:59.8]} 20... Ne6 {[%clk 0:01:47.3]} 21. Qh5
{[%clk 0:00:58.1]} 21... Rf8 {[%clk 0:01:39.8]} 22. Rad1 {[%clk 0:00:55.7]}
22... Rad8 {[%clk 0:01:36.3]} 23. Bc1 {[%clk 0:00:55.8]} 23... Bg5 {[%clk
0:01:35.4]} 24. Ba3 {[%clk 0:00:48.3]} 24... Nd4 {[%clk 0:01:27.2]} 25. h4
{[%clk 0:00:42.8]} 25... Bf6 {[%clk 0:01:20.6]} 26. c3 {[%clk 0:00:41.1]} 26...
Ne6 {[%clk 0:01:19.2]} 27. Bc1 {[%clk 0:00:39.5]} 27... Nc7 {[%clk 0:01:12]} 28.
Be4 {[%clk 0:00:38.1]} 28... d5 {[%clk 0:01:11.9]} 29. Bb1 {[%clk 0:00:37.2]}
29... e4 {[%clk 0:01:11]} 30. c4 {[%clk 0:00:31.3]} 30... Bd4 {[%clk 0:01:02.7]}
31. Kg2 {[%clk 0:00:19.1]} 31... f5 {[%clk 0:01:00.5]} 32. Ba3 {[%clk
0:00:13.6]} 32... Rf6 {[%clk 0:00:56.6]} 33. cxd5 {[%clk 0:00:13.5]} 33... Nxd5
{[%clk 0:00:53.2]} 34. Bc1 {[%clk 0:00:05.7]} 34... Bxf2 {[%clk 0:00:51.4]} 35.
Rf1 {[%clk 0:00:05.3]} 35... Ne3+ {[%clk 0:00:39.7]} 36. Bxe3 {[%clk 0:00:04.9]}
36... Bxe3 {[%clk 0:00:37.7]} 37. Rxd8+ {[%clk 0:00:04.3]} 37... Qxd8 {[%clk
0:00:37.7]} 38. Qe2 {[%clk 0:00:04.5]} 38... Qd4 {[%clk 0:00:33.2]} 39. Rd1
{[%clk 0:00:04.6]} 39... Qb6 {[%clk 0:00:32.2]} 40. Ba2 {[%clk 0:00:03.8]} 40...
Bc5 {[%clk 0:00:29.9]} 41. Qc4+ {[%clk 0:00:04]} 41... Kh7 {[%clk 0:00:29]} 42.
Rd7 {[%clk 0:00:03.6]} 42... Qb4 {[%clk 0:00:24.9]} 43. Qd5 {[%clk 0:00:02]}
43... Qe1 {[%clk 0:00:22.7]} 44. Rd8 {[%clk 0:00:02.2]} 44... Qe2+ {[%clk
0:00:21.1]} 45. Kh1 {[%clk 0:00:02.1]} 45... Qf1+ {[%clk 0:00:20.8]} 46. Kh2
{[%clk 0:00:02.6]} 46... Qg1+ {[%clk 0:00:21]} 47. Kh3 {[%clk 0:00:03]} 47...
Qh1# {[%clk 0:00:21.1]} 0-1

[Event "*** SCC Grand Prix: Titled Tuesday Blitz"]
[Site "Chess.com"]
[Date "2020.07.14"]
[Round "9"]
[White "amintabatabaei"]
[Black "Colchonero64"]
[Result "1/2-1/2"]
[WhiteElo "3017"]
[BlackElo "2952"]
[TimeControl "180+1"]
[EndTime "11:47:33 PDT"]
[Termination "Game drawn by agreement"]

1. e4 {[%clk 0:02:59.6]} 1... e6 {[%clk 0:02:57.3]} 2. d4 {[%clk 0:02:56.2]}
2... d5 {[%clk 0:02:57.2]} 3. exd5 {[%clk 0:02:57.1]} 3... exd5 {[%clk
0:02:56.9]} 4. Nf3 {[%clk 0:02:57.8]} 4... Nf6 {[%clk 0:02:56.4]} 5. Bd3 {[%clk
0:02:57.8]} 5... Bd6 {[%clk 0:02:55.9]} 6. Qe2+ {[%clk 0:02:58]} 6... Be6 {[%clk
0:02:53]} 7. Ng5 {[%clk 0:02:58.2]} 7... Qe7 {[%clk 0:02:53.1]} 8. Nxe6 {[%clk
0:02:58.1]} 8... fxe6 {[%clk 0:02:53.2]} 9. c3 {[%clk 0:02:58.2]} 9... O-O
{[%clk 0:02:49.2]} 10. O-O {[%clk 0:02:57.9]} 10... Nbd7 {[%clk 0:02:46.7]} 11.
f4 {[%clk 0:02:35.3]} 11... c5 {[%clk 0:02:45]} 12. Nd2 {[%clk 0:02:32]} 12...
cxd4 {[%clk 0:02:42.2]} 13. cxd4 {[%clk 0:02:32.9]} 13... Rac8 {[%clk
0:02:29.4]} 14. Nf3 {[%clk 0:02:30.7]} 14... Ne4 {[%clk 0:02:28.8]} 15. Bxe4
{[%clk 0:02:27]} 15... dxe4 {[%clk 0:02:29.7]} 16. Qxe4 {[%clk 0:02:27.9]} 16...
Nf6 {[%clk 0:02:29.6]} 17. Qe2 {[%clk 0:02:25]} 17... Kh8 {[%clk 0:02:16.2]} 18.
Re1 {[%clk 0:02:21.4]} 18... Qc7 {[%clk 0:02:10]} 19. g3 {[%clk 0:02:20.5]}
19... Qc6 {[%clk 0:01:55.4]} 20. Bd2 {[%clk 0:02:20.3]} 20... Qd5 {[%clk
0:01:55.4]} 21. Rac1 {[%clk 0:02:05.1]} 21... Rxc1 {[%clk 0:01:49.6]} 22. Bxc1
{[%clk 0:02:06]} 22... Bb4 {[%clk 0:01:36.4]} 23. Rd1 {[%clk 0:01:48.9]} 23...
Qxa2 {[%clk 0:01:36]} 24. Ng5 {[%clk 0:01:49.3]} 24... Re8 {[%clk 0:01:26.3]}
25. Qb5 {[%clk 0:00:57.8]} 25... Ba5 {[%clk 0:01:18.3]} 26. Bd2 {[%clk
0:00:47.1]} 26... Bxd2 {[%clk 0:01:08.6]} 27. Rxd2 {[%clk 0:00:48]} 27... Qd5
{[%clk 0:01:08.2]} 28. Qxd5 {[%clk 0:00:45.9]} 28... exd5 {[%clk 0:01:02.1]} 29.
Rc2 {[%clk 0:00:44.7]} 29... h6 {[%clk 0:01:01.3]} 30. Nf7+ {[%clk 0:00:44.6]}
30... Kg8 {[%clk 0:01:01.2]} 31. Rc7 {[%clk 0:00:40.3]} 31... Re2 {[%clk
0:00:53.2]} 32. Rxb7 {[%clk 0:00:37.2]} 32... Ne4 {[%clk 0:00:53.2]} 33. Ne5
{[%clk 0:00:36]} 33... g5 {[%clk 0:00:49.2]} 34. f5 {[%clk 0:00:34.4]} 34... h5
{[%clk 0:00:43.8]} 35. Nc6 {[%clk 0:00:27.4]} 35... g4 {[%clk 0:00:34.2]} 36.
Ne7+ {[%clk 0:00:27.4]} 36... Kf8 {[%clk 0:00:33.5]} 37. Ng6+ {[%clk 0:00:27.5]}
37... Kg8 {[%clk 0:00:32.6]} 38. Nf4 {[%clk 0:00:27.7]} 38... Rd2 {[%clk
0:00:29.4]} 39. Nxh5 {[%clk 0:00:22.8]} 39... Rd1+ {[%clk 0:00:27.9]} 40. Kg2
{[%clk 0:00:22.6]} 40... Rd2+ {[%clk 0:00:28.5]} 41. Kf1 {[%clk 0:00:22.9]}
41... Rxh2 {[%clk 0:00:28.3]} 42. Nf4 {[%clk 0:00:18.2]} 42... Nxg3+ {[%clk
0:00:27.9]} 43. Kg1 {[%clk 0:00:18.3]} 43... Rd2 {[%clk 0:00:27.2]} 44. Nxd5
{[%clk 0:00:17.1]} 44... Nxf5 {[%clk 0:00:26.6]} 45. Nf6+ {[%clk 0:00:11.7]}
45... Kf8 {[%clk 0:00:25.8]} 46. Nxg4 {[%clk 0:00:11.1]} 46... Nxd4 {[%clk
0:00:24.5]} 47. Ne5 {[%clk 0:00:07.5]} 47... a5 {[%clk 0:00:20.3]} 1/2-1/2

[Event "*** SCC Grand Prix: Titled Tuesday Blitz"]
[Site "Chess.com"]
[Date "2020.07.14"]
[Round "9"]
[White "malakismayil"]
[Black "KonstantinB_1983"]
[Result "0-1"]
[WhiteElo "2249"]
[BlackElo "2412"]
[TimeControl "180+1"]
[EndTime "11:47:34 PDT"]
[Termination "KonstantinB_1983 won on time"]

1. e4 {[%clk 0:03:00.9]} 1... c6 {[%clk 0:02:58.6]} 2. d4 {[%clk 0:03:00.4]}
2... d5 {[%clk 0:02:58.9]} 3. exd5 {[%clk 0:03:01.3]} 3... cxd5 {[%clk
0:02:58.2]} 4. Bd3 {[%clk 0:03:01.6]} 4... Nc6 {[%clk 0:02:57.1]} 5. c3 {[%clk
0:02:58.9]} 5... Nf6 {[%clk 0:02:56.9]} 6. h3 {[%clk 0:02:58.4]} 6... g6 {[%clk
0:02:55.7]} 7. Nf3 {[%clk 0:02:58.5]} 7... Bg7 {[%clk 0:02:55.7]} 8. O-O {[%clk
0:02:58.5]} 8... O-O {[%clk 0:02:56]} 9. Bb5 {[%clk 0:02:56]} 9... Bd7 {[%clk
0:02:55.1]} 10. Bxc6 {[%clk 0:02:52.9]} 10... Bxc6 {[%clk 0:02:54.1]} 11. Nbd2
{[%clk 0:02:51.4]} 11... Ne4 {[%clk 0:02:50.8]} 12. Re1 {[%clk 0:02:37.8]} 12...
Qd6 {[%clk 0:02:46.3]} 13. Qe2 {[%clk 0:02:29.1]} 13... f5 {[%clk 0:02:41.7]}
14. c4 {[%clk 0:02:17.4]} 14... e6 {[%clk 0:02:39.8]} 15. c5 {[%clk 0:02:15.8]}
15... Qc7 {[%clk 0:02:34.1]} 16. Nb3 {[%clk 0:02:04.1]} 16... h6 {[%clk
0:02:21.7]} 17. Nbd2 {[%clk 0:01:31.9]} 17... g5 {[%clk 0:02:14]} 18. b4 {[%clk
0:01:30.9]} 18... e5 {[%clk 0:02:08.4]} 19. dxe5 {[%clk 0:01:16.3]} 19... g4
{[%clk 0:01:59.1]} 20. hxg4 {[%clk 0:01:11]} 20... fxg4 {[%clk 0:01:56.7]} 21.
Nd4 {[%clk 0:01:03.1]} 21... Bxe5 {[%clk 0:01:27.9]} 22. Qxg4+ {[%clk
0:01:00.3]} 22... Kh7 {[%clk 0:01:10.4]} 23. N2f3 {[%clk 0:00:38.1]} 23... Bh2+
{[%clk 0:01:04.2]} 24. Kf1 {[%clk 0:00:37.4]} 24... Bd7 {[%clk 0:00:43.8]} 25.
Qh4 {[%clk 0:00:32.9]} 25... Bf4 {[%clk 0:00:33.8]} 26. Qe7+ {[%clk 0:00:24.8]}
26... Kg6 {[%clk 0:00:26.9]} 27. Nh4+ {[%clk 0:00:22.4]} 27... Kh5 {[%clk
0:00:25.9]} 28. Nhf3 {[%clk 0:00:17.1]} 28... Rae8 {[%clk 0:00:18.7]} 29. Qh4+
{[%clk 0:00:16]} 29... Kg6 {[%clk 0:00:18.3]} 30. Kg1 {[%clk 0:00:12.4]} 30...
Kh7 {[%clk 0:00:17]} 31. Be3 {[%clk 0:00:12.2]} 31... Bxe3 {[%clk 0:00:16.3]}
32. Rxe3 {[%clk 0:00:13.1]} 32... Rg8 {[%clk 0:00:15.4]} 33. Rae1 {[%clk
0:00:12]} 33... Rg7 {[%clk 0:00:13.6]} 34. R1e2 {[%clk 0:00:06.9]} 34... Reg8
{[%clk 0:00:13.7]} 35. Ne1 {[%clk 0:00:07.3]} 35... Rg4 {[%clk 0:00:12.4]} 36.
Qe7+ {[%clk 0:00:05.7]} 36... R8g7 {[%clk 0:00:12.6]} 37. Qf8 {[%clk 0:00:05.1]}
37... Rf4 {[%clk 0:00:11.3]} 38. Qa8 {[%clk 0:00:02.3]} 38... Bg4 {[%clk
0:00:10.7]} 0-1

[Event "*** SCC Grand Prix: Titled Tuesday Blitz"]
[Site "Chess.com"]
[Date "2020.07.14"]
[Round "9"]
[White "Sibelephant"]
[Black "VerdeNotte"]
[Result "1-0"]
[WhiteElo "3120"]
[BlackElo "2800"]
[TimeControl "180+1"]
[EndTime "11:47:38 PDT"]
[Termination "Sibelephant won by resignation"]

1. Nf3 {[%clk 0:02:59.6]} 1... Nf6 {[%clk 0:02:57.9]} 2. g3 {[%clk 0:02:58.5]}
2... g6 {[%clk 0:02:58.2]} 3. b3 {[%clk 0:02:58.9]} 3... Bg7 {[%clk 0:02:57.6]}
4. Bb2 {[%clk 0:02:59.6]} 4... O-O {[%clk 0:02:57.3]} 5. Bg2 {[%clk 0:03:00.3]}
5... d6 {[%clk 0:02:57.9]} 6. d4 {[%clk 0:03:00.4]} 6... c5 {[%clk 0:02:56.4]}
7. c4 {[%clk 0:03:00.7]} 7... Ne4 {[%clk 0:02:51.6]} 8. O-O {[%clk 0:03:00.3]}
8... Nc6 {[%clk 0:02:50.7]} 9. h3 {[%clk 0:02:47.3]} 9... Rb8 {[%clk 0:02:20.3]}
10. e3 {[%clk 0:02:34.6]} 10... Bd7 {[%clk 0:01:59.3]} 11. Nbd2 {[%clk
0:02:21.6]} 11... Nf6 {[%clk 0:01:55.6]} 12. d5 {[%clk 0:02:10.9]} 12... Na5
{[%clk 0:01:54.1]} 13. a4 {[%clk 0:02:10]} 13... a6 {[%clk 0:01:52.7]} 14. Bc3
{[%clk 0:02:07]} 14... e6 {[%clk 0:01:52.3]} 15. dxe6 {[%clk 0:02:04.4]} 15...
Bxe6 {[%clk 0:01:49.2]} 16. Qc2 {[%clk 0:01:56.6]} 16... Nc6 {[%clk 0:01:34.7]}
17. Qb2 {[%clk 0:01:47.5]} 17... Re8 {[%clk 0:01:13.9]} 18. a5 {[%clk
0:01:27.4]} 18... d5 {[%clk 0:01:09]} 19. Rfd1 {[%clk 0:01:21.8]} 19... Qe7
{[%clk 0:00:51.7]} 20. cxd5 {[%clk 0:01:18.9]} 20... Bxd5 {[%clk 0:00:52]} 21.
Nc4 {[%clk 0:01:00.1]} 21... Rbd8 {[%clk 0:00:50.1]} 22. Ne1 {[%clk 0:00:46.5]}
22... Bxg2 {[%clk 0:00:49.4]} 23. Nxg2 {[%clk 0:00:47]} 23... Nh5 {[%clk
0:00:46.2]} 24. Bxg7 {[%clk 0:00:43.8]} 24... Nxg7 {[%clk 0:00:47.1]} 25. Nf4
{[%clk 0:00:44.3]} 25... Nb4 {[%clk 0:00:34.7]} 26. Nb6 {[%clk 0:00:29.4]} 26...
Qe4 {[%clk 0:00:23.2]} 27. Qc3 {[%clk 0:00:28.2]} 27... Qc2 {[%clk 0:00:09.1]}
28. Qxc2 {[%clk 0:00:23.1]} 28... Nxc2 {[%clk 0:00:10]} 29. Rxd8 {[%clk
0:00:18.9]} 29... Rxd8 {[%clk 0:00:10.9]} 30. Rc1 {[%clk 0:00:19.1]} 30... g5
{[%clk 0:00:07.5]} 31. Rxc2 {[%clk 0:00:13.4]} 31... gxf4 {[%clk 0:00:07.8]} 32.
gxf4 {[%clk 0:00:14.1]} 32... Ne6 {[%clk 0:00:07.1]} 33. f5 {[%clk 0:00:13.9]}
33... Ng5 {[%clk 0:00:05.1]} 34. Kg2 {[%clk 0:00:14.4]} 34... h5 {[%clk
0:00:03.3]} 35. f3 {[%clk 0:00:11.5]} 35... Rd3 {[%clk 0:00:02.6]} 36. h4 {[%clk
0:00:11.1]} 36... Nh7 {[%clk 0:00:02.5]} 37. Kf2 {[%clk 0:00:11.5]} 37... Rxb3
{[%clk 0:00:02.4]} 38. Rxc5 {[%clk 0:00:12.1]} 38... Ra3 {[%clk 0:00:02.4]} 39.
e4 {[%clk 0:00:12.3]} 39... Kg7 {[%clk 0:00:02.5]} 40. e5 {[%clk 0:00:10.9]}
40... Nf8 {[%clk 0:00:02.6]} 41. Rc7 {[%clk 0:00:10.8]} 41... Rxa5 {[%clk
0:00:02.5]} 42. e6 {[%clk 0:00:11.2]} 42... Rxf5 {[%clk 0:00:02.7]} 43. e7
{[%clk 0:00:11.7]} 43... Re5 {[%clk 0:00:03.3]} 44. exf8=Q+ {[%clk 0:00:11.7]}
44... Kxf8 {[%clk 0:00:03.8]} 45. Nd7+ {[%clk 0:00:12.4]} 1-0

[Event "*** SCC Grand Prix: Titled Tuesday Blitz"]
[Site "Chess.com"]
[Date "2020.07.14"]
[Round "9"]
[White "frederiksvane"]
[Black "GM_Levan_Pantsulaia"]
[Result "0-1"]
[WhiteElo "2698"]
[BlackElo "2834"]
[TimeControl "180+1"]
[EndTime "11:47:38 PDT"]
[Termination "GM_Levan_Pantsulaia won by resignation"]

1. e4 {[%clk 0:03:00.9]} 1... c5 {[%clk 0:02:58.6]} 2. Nc3 {[%clk 0:03:01.1]}
2... e6 {[%clk 0:02:57.8]} 3. Nf3 {[%clk 0:03:00.1]} 3... a6 {[%clk 0:02:57.9]}
4. d4 {[%clk 0:03:00.3]} 4... cxd4 {[%clk 0:02:58.2]} 5. Nxd4 {[%clk 0:03:01.2]}
5... b5 {[%clk 0:02:58.8]} 6. Bd3 {[%clk 0:02:59]} 6... Bb7 {[%clk 0:02:57.4]}
7. O-O {[%clk 0:02:59.2]} 7... Nc6 {[%clk 0:02:58]} 8. Nxc6 {[%clk 0:02:56.8]}
8... Bxc6 {[%clk 0:02:58.9]} 9. Re1 {[%clk 0:02:57]} 9... Bc5 {[%clk 0:02:58.8]}
10. Nd5 {[%clk 0:02:54.9]} 10... Ne7 {[%clk 0:02:49.4]} 11. b4 {[%clk
0:02:30.3]} 11... Bxd5 {[%clk 0:02:14.7]} 12. bxc5 {[%clk 0:01:59]} 12... Bc6
{[%clk 0:02:14.4]} 13. Bf4 {[%clk 0:01:58.6]} 13... O-O {[%clk 0:02:10.6]} 14.
Bd6 {[%clk 0:01:57.7]} 14... Ng6 {[%clk 0:02:08.5]} 15. e5 {[%clk 0:01:51.5]}
15... Qg5 {[%clk 0:02:02.7]} 16. g3 {[%clk 0:01:41]} 16... f6 {[%clk 0:01:55]}
17. Bxf8 {[%clk 0:01:24.2]} 17... Rxf8 {[%clk 0:01:52]} 18. exf6 {[%clk
0:01:21.8]} 18... Rxf6 {[%clk 0:01:48.3]} 19. Be4 {[%clk 0:01:12.6]} 19... Qxc5
{[%clk 0:01:48.1]} 20. Bxc6 {[%clk 0:01:09.8]} 20... Rxf2 {[%clk 0:01:37.9]} 21.
Bg2 {[%clk 0:00:16]} 21... Rd2+ {[%clk 0:01:27.7]} 22. Kh1 {[%clk 0:00:16.3]}
22... Rxd1 {[%clk 0:01:27.4]} 23. Raxd1 {[%clk 0:00:17.2]} 23... Ne5 {[%clk
0:01:26.9]} 24. Rd2 {[%clk 0:00:15.6]} 24... Qc3 {[%clk 0:01:14.9]} 25. Rde2
{[%clk 0:00:15.8]} 25... Nc4 {[%clk 0:01:12.8]} 26. Rf1 {[%clk 0:00:13.5]} 26...
h6 {[%clk 0:01:10.7]} 27. Ref2 {[%clk 0:00:10.5]} 27... Nd2 {[%clk 0:00:58.2]}
28. Rd1 {[%clk 0:00:08]} 28... Nc4 {[%clk 0:00:51.3]} 29. Rxd7 {[%clk
0:00:07.5]} 29... Qe3 {[%clk 0:00:32.7]} 30. Rdf7 {[%clk 0:00:03.7]} 30... Nd6
{[%clk 0:00:28.5]} 31. Rf8+ {[%clk 0:00:03.6]} 31... Kh7 {[%clk 0:00:27.8]} 32.
R8f3 {[%clk 0:00:04.5]} 32... Qc1+ {[%clk 0:00:26]} 33. Rf1 {[%clk 0:00:01.9]}
33... Qxc2 {[%clk 0:00:26.3]} 34. h3 {[%clk 0:00:02.5]} 34... Nf5 {[%clk
0:00:25.1]} 35. Kh2 {[%clk 0:00:02]} 35... Qc7 {[%clk 0:00:22.9]} 36. Kh1 {[%clk
0:00:01.3]} 36... Nxg3+ {[%clk 0:00:22]} 37. Rxg3 {[%clk 0:00:02.2]} 37... Qxg3
{[%clk 0:00:21.9]} 38. Be4+ {[%clk 0:00:03.1]} 38... Kg8 {[%clk 0:00:21.9]} 39.
Rf3 {[%clk 0:00:03.4]} 39... Qe1+ {[%clk 0:00:21.5]} 40. Kh2 {[%clk 0:00:03.3]}
40... Qxe4 {[%clk 0:00:22.4]} 41. Rf2 {[%clk 0:00:03.6]} 41... a5 {[%clk
0:00:20.6]} 42. Rg2 {[%clk 0:00:04.5]} 42... a4 {[%clk 0:00:20.6]} 43. Rf2
{[%clk 0:00:05.4]} 43... b4 {[%clk 0:00:20.4]} 44. h4 {[%clk 0:00:06.3]} 44...
Qxh4+ {[%clk 0:00:19.4]} 45. Kg2 {[%clk 0:00:07.2]} 45... Qxf2+ {[%clk
0:00:19.9]} 46. Kxf2 {[%clk 0:00:08.1]} 46... b3 {[%clk 0:00:20.3]} 47. axb3
{[%clk 0:00:09]} 0-1